fUST/lending_fUST_20251004
["ID","MTS","AMOUNT","RATE_DAILY","PERIOD"]
[389143368,1759590662981,-4041.89,0.0002,2]
[389143369,1759590662991,-500.0,0.0002,2]
[389143370,1759590663000,-500.0,0.0002,2]
[389143371,1759590663010,-500.0,0.0002,2]
[389143372,1759590663019,-500.0,0.0002,2]
[389143373,1759590663028,-588.7,0.0002,2]
[389143374,1759590663038,-151.0,0.0002,2]
[389143375,1759590663049,-500.0,0.0002,2]
[389143376,1759590663058,-151.0,0.0002,2]
[389143377,1759590663068,-1598.11,0.0002,2]
[389143378,1759590663078,-151.0,0.0002,2]
[389143379,1759590663088,-500.0,0.0002,2]
[389143380,1759590663097,-151.0,0.0002,2]
[389143381,1759590663109,-151.0,0.0002,2]
[389143382,1759590663119,-151.0,0.0002,2]
[389143383,1759590663130,-151.0,0.0002,2]
[389143384,1759590663140,-542.75,0.0002,2]
[389143385,1759590663150,-1068.6,0.0002,2]
[389143386,1759590663160,-151.0,0.0002,2]
[389143387,1759590663170,-151.0,0.0002,2]
[389143388,1759590663180,-151.0,0.0002,2]
[389143389,1759590663189,-500.0,0.0002,2]
[389143390,1759590663199,-500.0,0.0002,2]
[389143391,1759590663209,-2368.12,0.0002,2]
[389143392,1759590663219,-548.65,0.0002,2]
[389143393,1759590663229,-1054.69,0.0002,2]
[389143394,1759590663238,-500.0,0.0002,2]
[389143395,1759590663247,-1050.17,0.0002,2]
[389143396,1759590663257,-238.190311,0.0002,2]
[389143397,1759590663266,-238.190311,0.0002,2]
[389143398,1759590663275,-786.24,0.0002,2]
[389143399,1759590663284,-442.59613019,0.0002,2]
[389143400,1759590663295,-232.342074,0.0002,2]
[389143401,1759590663305,-238.190311,0.0002,2]
[389143402,1759590663315,-1829.47,0.0002,2]
[389143403,1759590663324,-232.342074,0.0002,2]
[389143404,1759590663334,-791.1,0.0002,2]
[389143405,1759590663343,-238.190311,0.0002,2]
[389143406,1759590663353,-232.342074,0.0002,2]
[389143407,1759590663362,-232.342074,0.0002,2]
[389143408,1759590663372,-500.0,0.0002,2]
[389143409,1759590663383,-647.62,0.0002,2]
[389143410,1759590663392,-500.0,0.0002,2]
[389143411,1759590663402,-424.7276394,0.0002,2]
[389143412,1759590663411,-500.0,0.0002,2]
[389143413,1759590663422,-500.0,0.0002,2]
[389143414,1759590663432,-151.0,0.0002,2]
[389143415,1759590663442,-1868.16,0.0002,2]
[389143416,1759590663453,-947.44,0.0002,2]
[389143417,1759590663463,-1195.72,0.0002,2]
[389143418,1759590663473,-3023.99,0.0002,2]
[389143419,1759590663483,-440.89228745,0.0002,2]
[389143420,1759590663492,-594.18,0.0002,2]
[389143421,1759590663502,-1450.46,0.0002,2]
[389143422,1759590663511,-500.0,0.0002,2]
[389143423,1759590663520,-500.0,0.0002,2]
[389143424,1759590663530,-500.0,0.0002,2]
[389143425,1759590663539,-500.0,0.0002,2]
[389143426,1759590663550,-500.0,0.0002,2]
[389143427,1759590663559,-1341.41,0.0002,2]
[389143428,1759590663568,-503.24,0.0002,2]
[389143429,1759590663578,-2415.19,0.0002,2]
[389143430,1759590663587,-4325.59,0.0002,2]
[389143431,1759590663597,-500.0,0.0002,2]
[389143432,1759590663607,-500.0,0.0002,2]
[389143433,1759590663616,-151.0,0.0002,2]
[389143434,1759590663626,-2117.6,0.0002,2]
[389143435,1759590663637,-616.75,0.0002,2]
[389143436,1759590663647,-500.0,0.0002,2]
[389143437,1759590663656,-894.18,0.0002,2]
[389143438,1759590663666,-626.258136,0.0002,2]
[389143439,1759590663676,-626.258136,0.0002,2]
[389143440,1759590663685,-626.258136,0.0002,2]
[389143441,1759590663694,-626.258136,0.0002,2]
[389143442,1759590663703,-646.89,0.0002,2]
[389143443,1759590663713,-6808.25,0.0002,2]
[389143444,1759590663722,-276.382728,0.0002,2]
[389143445,1759590663732,-500.0,0.0002,2]
[389143446,1759590663741,-1219.82,0.0002,2]
[389143447,1759590663750,-9676.674595,0.0002,2]
[389143448,1759590663759,-151.0,0.0002,2]
[389143449,1759590663769,-276.382728,0.0002,2]
[389143450,1759590663778,-766.0,0.0002,2]
[389143451,1759590663787,-576.19,0.0002,2]
[389143452,1759590663797,-276.382728,0.0002,2]
[389143453,1759590663807,-9676.674595,0.0002,2]
[389143454,1759590663816,-151.0,0.0002,2]
[389143455,1759590663826,-151.0,0.0002,2]
[389143456,1759590663837,-276.382728,0.0002,2]
[389143457,1759590663846,-9676.674595,0.0002,2]
[389143458,1759590663856,-501.11,0.0002,2]
[389143459,1759590663866,-250.420683,0.0002,2]
[389143460,1759590663877,-500.0,0.0002,2]
[389143461,1759590663886,-151.0,0.0002,2]
[389143462,1759590663895,-9676.674595,0.0002,2]
[389143463,1759590663904,-308.588538,0.0002,2]
[389143464,1759590663914,-151.0,0.0002,2]
[389143465,1759590663923,-838.57,0.0002,2]
[389143466,1759590663932,-308.588538,0.0002,2]
[389143467,1759590663942,-500.0,0.0002,2]
[389143468,1759590663951,-308.588538,0.0002,2]
[389143469,1759590663960,-1612.24,0.0002,2]
[389143470,1759590663970,-500.0,0.0002,2]
[389143471,1759590663979,-308.588538,0.0002,2]
[389143472,1759590663989,-223.459985,0.0002,2]
[389143473,1759590663998,-500.0,0.0002,2]
[389143474,1759590664007,-151.0,0.0002,2]
[389143475,1759590664017,-223.459985,0.0002,2]
[389143476,1759590664026,-151.0,0.0002,2]
[389143477,1759590664036,-223.459985,0.0002,2]
[389143478,1759590664045,-245.018495,0.0002,2]
[389143479,1759590664054,-500.0,0.0002,2]
[389143480,1759590664065,-151.0,0.0002,2]
[389143481,1759590664075,-223.459985,0.0002,2]
[389143482,1759590664085,-500.0,0.0002,2]
[389143483,1759590664094,-153.276971,0.0002,2]
[389143484,1759590664103,-1409.27,0.0002,2]
[389143485,1759590664117,-151.0,0.0002,2]
[389143486,1759590664127,-1345.42,0.0002,2]
[389143487,1759590664136,-990.0,0.0002,2]
[389143488,1759590664145,-500.0,0.0002,2]
[389143489,1759590664155,-151.0,0.0002,2]
[389143490,1759590664165,-923.15,0.0002,2]
[389143491,1759590664174,-1493.73,0.0002,2]
[389143492,1759590664183,-151.0,0.0002,2]
[389143493,1759590664192,-500.0,0.0002,2]
[389143494,1759590664203,-500.0,0.0002,2]
[389143495,1759590664213,-500.0,0.0002,2]
[389143496,1759590664223,-151.0,0.0002,2]
[389143497,1759590664233,-542.59,0.0002,2]
[389143498,1759590664244,-763.547667,0.0002,2]
[389143499,1759590664255,-196.38286435,0.0002,2]
[389143500,1759590664265,-1082.9,0.0002,2]
[389143501,1759590664275,-298.269547,0.0002,2]
[389143502,1759590664284,-763.547667,0.0002,2]
[389143503,1759590664293,-1072.6,0.0002,2]
[389143504,1759590664303,-266.72883709,0.0002,2]
[389143505,1759590664312,-500.0,0.0002,2]
[389143506,1759590664322,-1043.25,0.0002,2]
[389143507,1759590664331,-763.547667,0.0002,2]
[389143508,1759590664340,-500.0,0.0002,2]
[389143509,1759590664350,-1131.17,0.0002,2]
[389143510,1759590664360,-151.0,0.0002,2]
[389143511,1759590664369,-763.547667,0.0002,2]
[389143512,1759590664378,-2361.16,0.0002,2]
[389143513,1759590664388,-500.0,0.0002,2]
[389143514,1759590664397,-500.0,0.0002,2]
[389143515,1759590664407,-5225.58,0.0002,2]
[389143516,1759590664417,-567.60700122,0.0002,2]
[389143517,1759590664427,-500.0,0.0002,2]
[389143518,1759590664436,-985.70328,0.0002,2]
[389143519,1759590664445,-323.16190074,0.0002,2]
[389143520,1759590664454,-151.0,0.0002,2]
[389143521,1759590664464,-985.70328,0.0002,2]
[389143522,1759590664473,-472.52244,0.0002,2]
[389143523,1759590664482,-151.0,0.0002,2]
[389143524,1759590664492,-985.70328,0.0002,2]
[389143525,1759590664501,-472.52244,0.0002,2]
[389143526,1759590664510,-151.0,0.0002,2]
[389143527,1759590664520,-151.0,0.0002,2]
[389143528,1759590664529,-500.0,0.0002,2]
[389143529,1759590664539,-985.70328,0.0002,2]
[389143530,1759590664549,-472.52244,0.0002,2]
[389143531,1759590664558,-151.0,0.0002,2]
[389143532,1759590664567,-151.0,0.0002,2]
[389143533,1759590664576,-472.52244,0.0002,2]
[389143534,1759590664585,-151.0,0.0002,2]
[389143535,1759590664595,-414.143484,0.0002,2]
[389143536,1759590664604,-1448.44,0.0002,2]
[389143537,1759590664613,-511.73,0.0002,2]
[389143538,1759590664623,-414.143484,0.0002,2]
[389143539,1759590664632,-153.610153,0.0002,2]
[389143540,1759590664641,-632.45,0.0002,2]
[389143541,1759590664651,-500.0,0.0002,2]
[389143542,1759590664660,-606.37,0.0002,2]
[389143543,1759590664669,-414.143484,0.0002,2]
[389143544,1759590664679,-500.0,0.0002,2]
[389143545,1759590664687,-414.143484,0.0002,2]
[389143546,1759590664697,-500.0,0.0002,2]
[389143547,1759590664706,-1452.17,0.0002,2]
[389143548,1759590664715,-647.03,0.0002,2]
[389143549,1759590664724,-151.0,0.0002,2]
[389143550,1759590664735,-1921.468988,0.0002,2]
[389143551,1759590664743,-151.0,0.0002,2]
[389143552,1759590664753,-326.305215,0.0002,2]
[389143553,1759590664762,-1921.468988,0.0002,2]
[389143554,1759590664771,-500.0,0.0002,2]
[389143555,1759590664781,-151.0,0.0002,2]
[389143556,1759590664791,-6915.55,0.0002,2]
[389143557,1759590664800,-326.305215,0.0002,2]
[389143558,1759590664809,-500.0,0.0002,2]
[389143559,1759590664819,-1921.468988,0.0002,2]
[389143560,1759590664828,-326.305215,0.0002,2]
[389143561,1759590664837,-280.118482,0.0002,2]
[389143562,1759590664846,-1921.468988,0.0002,2]
[389143563,1759590664856,-550.847156,0.0002,2]
[389143564,1759590664865,-500.0,0.0002,2]
[389143565,1759590664874,-326.305215,0.0002,2]
[389143566,1759590664883,-2266.98,0.0002,2]
[389143567,1759590664892,-550.847156,0.0002,2]
[389143568,1759590664901,-3328.29,0.0002,2]
[389143569,1759590664911,-500.0,0.0002,2]
[389143570,1759590664921,-550.847156,0.0002,2]
[389143571,1759590664930,-550.847156,0.0002,2]
[389143572,1759590664941,-4000.0,0.0002,4]
[389143573,1759590664952,-500.0,0.0002,2]
[389143574,1759590664961,-1023.24,0.0002,2]
[389143575,1759590664971,-500.0,0.0002,2]
[389143576,1759590664981,-1262.25,0.0002,2]
[389143577,1759590664990,-500.0,0.0002,2]
[389143578,1759590665000,-6120.99,0.0002,2]
[389143579,1759590665010,-3854.46,0.0002,2]
[389143580,1759590665019,-632.01,0.0002,2]
[389143581,1759590665030,-500.0,0.0002,2]
[389143582,1759590665041,-1243.803981,0.0002,2]
[389143583,1759590665051,-500.0,0.0002,2]
[389143584,1759590665062,-1243.803981,0.0002,2]
[389143585,1759590665072,-500.0,0.0002,2]
[389143586,1759590665082,-500.0,0.0002,2]
[389143587,1759590665091,-500.0,0.0002,2]
[389143588,1759590665102,-1243.803981,0.0002,2]
[389143589,1759590665114,-151.0,0.0002,2]
[389143590,1759590665125,-1243.803981,0.0002,2]
[389143591,1759590665134,-324.07,0.0002,2]
[389143592,1759590665143,-500.0,0.0002,2]
[389143593,1759590665152,-151.0,0.0002,2]
[389143594,1759590665161,-1031.38,0.0002,2]
[389143595,1759590665170,-396.27836181,0.0002,2]
[389143596,1759590665180,-1428.16,0.0002,2]
[389143597,1759590665189,-1606.82,0.0002,2]
[389143598,1759590665198,-826.478215,0.0002,2]
[389143599,1759590665207,-151.0,0.0002,2]
[389143600,1759590665217,-826.478215,0.0002,2]
[389143601,1759590665226,-500.0,0.0002,2]
[389143602,1759590665235,-917.5,0.0002,2]
[389143603,1759590665245,-4600.4,0.0002,2]
[389143604,1759590665254,-551.75,0.0002,2]
[389143605,1759590665264,-821.33,0.0002,2]
[389143606,1759590665274,-151.0,0.0002,2]
[389143607,1759590665283,-826.478215,0.0002,2]
[389143608,1759590665293,-500.0,0.0002,2]
[389143609,1759590665302,-500.0,0.0002,2]
[389143610,1759590665433,-811.0,0.00020022,2]
[389143611,1759590665443,-811.0,0.0002003,2]
[389143612,1759590665452,-260.0,0.00020048,2]
[389143613,1759590665462,-500.0,0.00020076,2]
[389143614,1759590665471,-500.0,0.00020076,2]
[389143615,1759590665481,-500.0,0.00020076,2]
[389143616,1759590665490,-500.0,0.00020076,2]
[389143617,1759590665500,-500.20872795,0.00020076,2]
[389143618,1759590665510,-151.0,0.000201,4]
[389143619,1759590665519,-811.0,0.00020127,2]
[389143620,1759590665528,-500.0,0.00020175,2]
[389143621,1759590665538,-1603.48,0.00020197,3]
[389143622,1759590665547,-801.74,0.00020197,3]
[389143623,1759590665556,-400.88,0.00020197,3]
[389143624,1759590665565,-411.92,0.00020197,3]
[389143625,1759590665574,-415.84,0.00020197,3]
[389143626,1759590665584,-151.0,0.000202,4]
[389143627,1759590665595,-500.0,0.00020207,2]
[389143628,1759590665604,-151.0,0.00020268,2]
[389143629,1759590665614,-220.216426,0.00020268,2]
[389143630,1759590665624,-151.0,0.00020268,2]
[389143631,1759590665634,-151.0,0.00020268,2]
[389143632,1759590665643,-151.479331,0.00020268,2]
[389143633,1759590665652,-185.947866,0.00020268,2]
[389143634,1759590665661,-185.947866,0.00020268,2]
[389143635,1759590665671,-185.947866,0.00020268,2]
[389143636,1759590665680,-185.947866,0.00020268,2]
[389143637,1759590665689,-151.0,0.00020268,2]
[389143638,1759590665698,-151.0,0.00020268,2]
[389143639,1759590665707,-1500.0,0.00020268,2]
[389143640,1759590665716,-1500.0,0.00020268,2]
[389143641,1759590665725,-1500.0,0.00020268,2]
[389143642,1759590665734,-1123.83980279,0.00020268,2]
[389143643,1759590665743,-1153.93624795,0.00020268,2]
[389143644,1759590665752,-1500.0,0.00020268,2]
[389143645,1759590665762,-1500.0,0.00020268,2]
[389143646,1759590665772,-612.80898852,0.00020268,2]
[389143647,1759590665782,-1500.0,0.00020268,2]
[389143648,1759590665792,-1500.0,0.00020268,2]
[389143649,1759590665801,-566.32025163,0.00020268,2]
[389143650,1759590665811,-1500.0,0.00020268,2]
[389143651,1759590665821,-1500.0,0.00020268,2]
[389143652,1759590665830,-1500.0,0.00020268,2]
[389143653,1759590665842,-1500.0,0.00020268,2]
[389143654,1759590665853,-504.20138525,0.00020268,2]
[389143655,1759590665863,-1002.17481155,0.00020268,2]
[389143656,1759590665873,-1500.0,0.00020268,2]
[389143657,1759590665883,-518.04696729,0.00020268,2]
[389143658,1759590665893,-1095.1743883,0.00020268,2]
[389143659,1759590665902,-1122.43468,0.00020268,2]
[389143660,1759590665912,-1500.0,0.00020268,2]
[389143661,1759590665921,-1500.0,0.00020268,2]
[389143662,1759590665931,-440.32014047,0.00020268,2]
[389143663,1759590665941,-1500.0,0.00020268,2]
[389143664,1759590665950,-1500.0,0.00020268,2]
[389143665,1759590665960,-1500.0,0.00020268,2]
[389143666,1759590665969,-1500.0,0.00020268,2]
[389143667,1759590665979,-509.87836425,0.00020268,2]
[389143668,1759590665989,-1500.0,0.00020268,2]
[389143669,1759590665998,-1268.47350391,0.00020268,2]
[389143670,1759590666008,-1500.0,0.00020268,2]
[389143671,1759590666017,-1500.0,0.00020268,2]
[389143672,1759590666027,-1500.0,0.00020268,2]
[389143673,1759590666037,-1024.85676905,0.00020268,2]
[389143674,1759590666046,-455.59347907,0.00020268,2]
[389143675,1759590666055,-587.13946892,0.00020273,2]
[389143676,1759590666065,-500.0,0.00020273,2]
[389143677,1759590666075,-257.71359532,0.00020273,2]
[389143678,1759590666085,-500.0,0.00020273,2]
[389143679,1759590666094,-420.35007864,0.00020273,2]
[389143680,1759590666104,-500.0,0.00020273,2]
[389143681,1759590666118,-200.12305405,0.00020273,2]
[389143682,1759590666128,-500.0,0.00020273,2]
[389143683,1759590666138,-500.0,0.00020273,2]
[389143684,1759590666148,-500.0,0.00020273,2]
[389143685,1759590666158,-500.0,0.00020273,2]
[389143686,1759590666168,-216.71966271,0.00020273,2]
[389143687,1759590666177,-500.0,0.00020273,2]
[389143688,1759590666186,-500.0,0.00020273,2]
[389143689,1759590666195,-500.0,0.00020273,2]
[389143690,1759590666205,-500.0,0.00020273,2]
[389143691,1759590666215,-500.0,0.00020273,2]
[389143692,1759590666224,-500.0,0.00020273,2]
[389143693,1759590666234,-500.0,0.00020273,2]
[389143694,1759590666244,-500.0,0.00020273,2]
[389143695,1759590666253,-500.0,0.00020273,2]
[389143696,1759590666262,-501.47766934,0.00020273,2]
[389143697,1759590666271,-500.0,0.00020273,2]
[389143698,1759590666280,-500.0,0.00020273,2]
[389143699,1759590666289,-500.67964998,0.00020273,2]
[389143700,1759590666299,-161.07994878,0.00020273,2]
[389143701,1759590666308,-500.0,0.00020273,2]
[389143702,1759590666318,-500.0,0.00020273,2]
[389143703,1759590666327,-500.0,0.00020273,2]
[389143704,1759590666336,-500.0,0.00020273,2]
[389143705,1759590666345,-500.0,0.00020273,2]
[389143706,1759590666354,-500.0,0.00020273,2]
[389143707,1759590666364,-500.0,0.00020273,2]
[389143708,1759590666373,-500.0,0.00020273,2]
[389143709,1759590666383,-500.0,0.00020273,2]
[389143710,1759590666392,-570.2,0.00020273,2]
[389143711,1759590666402,-500.0,0.00020273,2]
[389143712,1759590666411,-851.18,0.00020273,2]
[389143713,1759590666420,-500.0,0.00020273,2]
[389143714,1759590666432,-500.0,0.00020273,2]
[389143715,1759590666441,-500.0,0.00020273,2]
[389143716,1759590666451,-705.06,0.00020273,2]
[389143717,1759590666461,-500.0,0.00020273,2]
[389143718,1759590666471,-500.0,0.00020273,2]
[389143719,1759590666480,-500.0,0.00020273,2]
[389143720,1759590666489,-500.0,0.00020273,2]
[389143721,1759590666498,-500.0,0.00020273,2]
[389143722,1759590666508,-648.5025742,0.00020273,2]
[389143723,1759590666518,-1245.62,0.00020273,2]
[389143724,1759590666528,-500.0,0.00020273,2]
[389143725,1759590666537,-1777.82,0.00020273,2]
[389143726,1759590666547,-500.0,0.00020273,2]
[389143727,1759590666556,-921.66,0.00020273,2]
[389143728,1759590666567,-500.0,0.00020273,2]
[389143729,1759590666576,-500.0,0.00020273,2]
[389143730,1759590666586,-500.0,0.00020273,2]
[389143731,1759590666596,-1196.39,0.00020273,2]
[389143732,1759590666606,-500.0,0.00020273,2]
[389143733,1759590666615,-500.0,0.00020273,2]
[389143734,1759590666625,-529.14,0.00020273,2]
[389143735,1759590666635,-500.0,0.00020273,2]
[389143736,1759590666645,-534.32,0.00020273,2]
[389143737,1759590666655,-500.0,0.00020273,2]
[389143738,1759590666664,-500.0,0.00020273,2]
[389143739,1759590666673,-151.0,0.00020273,2]
[389143740,1759590666682,-151.0,0.00020273,2]
[389143741,1759590666692,-151.0,0.00020273,2]
[389143742,1759590666701,-152.181283,0.00020273,2]
[389143743,1759590666710,-1227.79,0.00020273,2]
[389143744,1759590666720,-151.0,0.00020273,2]
[389143745,1759590666730,-151.0,0.00020273,2]
[389143746,1759590666739,-151.0,0.00020273,2]
[389143747,1759590666751,-151.0,0.00020273,2]
[389143748,1759590666760,-151.0,0.00020273,2]
[389143749,1759590666769,-151.0,0.00020273,2]
[389143750,1759590666778,-500.0,0.00020273,2]
[389143751,1759590666788,-500.0,0.00020273,2]
[389143752,1759590666796,-500.0,0.00020273,2]
[389143753,1759590666806,-1123.99,0.00020273,2]
[389143754,1759590666816,-513.6,0.00020273,2]
[389143755,1759590666827,-500.0,0.00020273,2]
[389143756,1759590666836,-500.0,0.00020273,2]
[389143757,1759590666846,-500.0,0.00020273,2]
[389143758,1759590666855,-500.0,0.00020273,2]
[389143759,1759590666867,-500.0,0.00020273,2]
[389143760,1759590666877,-871.48,0.00020273,2]
[389143761,1759590666887,-663.01,0.00020273,2]
[389143762,1759590666898,-500.0,0.00020273,2]
[389143763,1759590666908,-1603.11,0.00020273,2]
[389143764,1759590666918,-564.32,0.00020273,2]
[389143765,1759590666928,-500.0,0.00020273,2]
[389143766,1759590666938,-2830.57,0.00020273,2]
[389143767,1759590666947,-500.0,0.00020273,2]
[389143768,1759590666956,-500.0,0.00020273,2]
[389143769,1759590666965,-500.0,0.00020273,2]
[389143770,1759590666976,-500.0,0.00020273,2]
[389143771,1759590666986,-500.0,0.00020273,2]
[389143772,1759590666996,-500.0,0.00020273,2]
[389143773,1759590667006,-500.0,0.00020273,2]
[389143774,1759590667015,-500.0,0.00020273,2]
[389143775,1759590667025,-500.0,0.00020273,2]
[389143776,1759590667035,-500.0,0.00020273,2]
[389143777,1759590667045,-500.0,0.00020273,2]
[389143778,1759590667059,-500.0,0.00020273,2]
[389143779,1759590667071,-500.0,0.00020273,2]
[389143780,1759590667080,-1054.46,0.00020273,2]
[389143781,1759590667090,-1656.64,0.00020273,2]
[389143782,1759590667099,-500.0,0.00020273,2]
[389143783,1759590667112,-500.0,0.00020273,2]
[389143784,1759590667121,-500.0,0.00020273,2]
[389143785,1759590667131,-500.0,0.00020273,2]
[389143786,1759590667140,-500.0,0.00020273,2]
[389143787,1759590667149,-537.94,0.00020273,2]
[389143788,1759590667158,-978.72,0.00020273,2]
[389143789,1759590667167,-500.0,0.00020273,2]
[389143790,1759590667176,-500.0,0.00020273,2]
[389143791,1759590667186,-765.99,0.00020273,2]
[389143792,1759590667195,-958.69,0.00020273,2]
[389143793,1759590667204,-1025.98,0.00020273,2]
[389143794,1759590667215,-562.14,0.00020273,2]
[389143795,1759590667224,-500.0,0.00020273,2]
[389143796,1759590667234,-500.0,0.00020273,2]
[389143797,1759590667243,-500.0,0.00020273,2]
[389143798,1759590667252,-533.74,0.00020273,2]
[389143799,1759590667261,-500.0,0.00020273,2]
[389143800,1759590667271,-500.0,0.00020273,2]
[389143801,1759590667281,-709.18,0.00020273,2]
[389143802,1759590667290,-555.69,0.00020273,2]
[389143803,1759590667299,-500.0,0.00020273,2]
[389143804,1759590667309,-500.0,0.00020273,2]
[389143805,1759590667319,-508.88,0.00020273,2]
[389143806,1759590667328,-664.88,0.00020273,2]
[389143807,1759590667338,-500.0,0.00020273,2]
[389143808,1759590667347,-500.0,0.00020273,2]
[389143809,1759590667356,-3239.32,0.00020273,2]
[389143810,1759590667366,-668.88,0.00020273,2]
[389143811,1759590667376,-500.0,0.00020273,2]
[389143812,1759590667386,-561.44,0.00020273,2]
[389143813,1759590667395,-2075.26,0.00020273,2]
[389143814,1759590667404,-500.0,0.00020273,2]
[389143815,1759590667413,-500.0,0.00020273,2]
[389143816,1759590667423,-500.0,0.00020273,2]
[389143817,1759590667432,-500.0,0.00020273,2]
[389143818,1759590667442,-500.0,0.00020273,2]
[389143819,1759590667452,-500.0,0.00020273,2]
[389143820,1759590667461,-500.0,0.00020273,2]
[389143821,1759590667471,-1601.94,0.00020273,2]
[389143822,1759590667480,-500.0,0.00020273,2]
[389143823,1759590667489,-500.0,0.00020273,2]
[389143824,1759590667499,-706.43,0.00020273,2]
[389143825,1759590667509,-500.0,0.00020273,2]
[389143826,1759590667518,-529.06,0.00020273,2]
[389143827,1759590667528,-500.0,0.00020273,2]
[389143828,1759590667538,-748.01,0.00020273,2]
[389143829,1759590667548,-500.0,0.00020273,2]
[389143830,1759590667558,-500.0,0.00020273,2]
[389143831,1759590667567,-805.25,0.00020273,2]
[389143832,1759590667576,-877.35,0.00020273,2]
[389143833,1759590667587,-500.0,0.00020273,2]
[389143834,1759590667597,-810.89,0.00020273,2]
[389143835,1759590667606,-500.0,0.00020273,2]
[389143836,1759590667616,-840.23,0.00020273,2]
[389143837,1759590667626,-151.0,0.00020273,2]
[389143838,1759590667636,-500.0,0.00020273,2]
[389143839,1759590667645,-151.0,0.00020273,2]
[389143840,1759590667654,-500.0,0.00020273,2]
[389143841,1759590667779,-151.0,0.00020273,2]
[389143842,1759590667789,-171.025184,0.00020273,2]
[389143843,1759590667799,-500.0,0.00020273,2]
[389143844,1759590667809,-500.0,0.00020273,2]
[389143845,1759590667819,-195.3323338,0.00020273,2]
[389143846,1759590667828,-500.0,0.00020273,2]
[389143847,1759590667839,-842.15,0.00020273,2]
[389143848,1759590667849,-500.0,0.00020273,2]
[389143849,1759590667859,-2848.24,0.00020273,2]
[389143850,1759590667871,-966.97,0.00020273,2]
[389143851,1759590667880,-500.0,0.00020273,2]
[389143852,1759590667890,-1140.91,0.00020273,2]
[389143853,1759590667900,-500.0,0.00020273,2]
[389143854,1759590667910,-1360.8,0.00020273,2]
[389143855,1759590667920,-151.0,0.00020273,2]
[389143857,1759590667929,-609.28,0.00020273,2]
[389143858,1759590667939,-500.0,0.00020273,2]
[389143859,1759590667948,-500.0,0.00020273,2]
[389143860,1759590667958,-500.0,0.00020273,2]
[389143861,1759590667967,-188.171782,0.00020273,2]
[389143862,1759590667977,-500.0,0.00020273,2]
[389143863,1759590667986,-188.171782,0.00020273,2]
[389143864,1759590667996,-500.0,0.00020273,2]
[389143865,1759590668005,-188.171782,0.00020273,2]
[389143866,1759590668014,-188.171782,0.00020273,2]
[389143867,1759590668024,-500.0,0.00020273,2]
[389143868,1759590668033,-645.8,0.00020273,2]